fUSD/lending_fUSD_20260511
["ID","MTS","AMOUNT","RATE_DAILY","PERIOD"]
[422013794,1778467377000,160.0,0.0002411,120]
[422013795,1778467378000,160.0,0.0002411,120]
[422013796,1778467379000,160.0,0.0002411,120]
[422013797,1778467380000,160.0,0.0002411,120]
[422013798,1778467382000,160.0,0.0002411,120]
[422013799,1778467383000,160.0,0.0002411,120]
[422013800,1778467514000,336.82,0.00027397,120]
[422013801,1778467528000,160.0,0.0002411,120]
[422013802,1778467529000,160.0,0.0002411,120]
[422013803,1778467531000,160.0,0.0002411,120]
[422013804,1778467532000,160.0,0.0002411,120]
[422013805,1778467533000,160.0,0.0002411,120]
[422013806,1778467534000,160.0,0.0002411,120]
[422013807,1778467542000,152.0,0.00013193,7]
[422013814,1778467831000,-300.0,0.0001215,2]
[422013815,1778467831000,-346.291,0.0001215,2]
[422013816,1778467831000,-853.709,0.0001215,2]
[422013819,1778467831000,-2582.31227938,0.00012151,2]
[422013834,1778467831000,-250.0,0.00014,2]
[422013820,1778467831000,-250.0,0.00012151,2]
[422013822,1778467831000,-150.0,0.00012272,2]
[422013818,1778467831000,-300.0,0.0001215,2]
[422013821,1778467831000,-507.70929376,0.00012151,2]
[422013817,1778467831000,-300.0,0.0001215,2]
[422013824,1778467831000,-150.0,0.00012393,2]
[422013826,1778467831000,-288.0,0.00012515,2]
[422013813,1778467831000,-177.35,0.00011047,2]
[422013828,1778467831000,-420.0,0.00013336,2]
[422013854,1778467831000,-166.31,0.00016264,2]
[422013830,1778467831000,-507.0,0.00013366,2]
[422013832,1778467831000,-177.35,0.00013726,2]
[422013852,1778467831000,-488.99,0.00015965,2]
[422013850,1778467831000,-197.7747378,0.00015846,2]
[422013853,1778467831000,-1622.44,0.00016226,2]
[422013851,1778467831000,-212.19,0.00015957,2]
[422013849,1778467831000,-156.587,0.00015846,2]
[422013855,1778467831000,-200.0,0.00016398,2]
[422013846,1778467831000,-150.0,0.0001579,2]
[422013841,1778467831000,-230.46,0.00015509,2]
[422013844,1778467831000,-398.0,0.00015704,2]
[422013843,1778467831000,-978.61,0.0001562,2]
[422013838,1778467831000,-200.0,0.00015481,2]
[422013836,1778467831000,-171.0,0.00014638,2]
[422013848,1778467831000,-151.0,0.00015846,2]
[422013901,1778467832000,-209.18107405,0.00016944,2]
[422013900,1778467832000,-150.0,0.00016944,2]
[422013898,1778467832000,-150.0,0.00016944,2]
[422013894,1778467832000,-281.89852311,0.00016944,2]
[422013897,1778467832000,-521.39157575,0.00016944,2]
[422013892,1778467832000,-150.0,0.00016944,2]
[422013895,1778467832000,-500.0,0.00016944,2]
[422013896,1778467832000,-150.0,0.00016944,2]
[422013891,1778467832000,-220.63403268,0.00016844,2]
[422013890,1778467832000,-500.0,0.00016844,2]
[422013903,1778467832000,-150.0,0.00016944,2]
[422013893,1778467832000,-150.0,0.00016944,2]
[422013911,1778467832000,-500.0,0.00016944,2]
[422013908,1778467832000,-500.0,0.00016944,2]
[422013904,1778467832000,-203.38924387,0.00016944,2]
[422013905,1778467832000,-500.0,0.00016944,2]
[422013906,1778467832000,-500.0,0.00016944,2]
[422013909,1778467832000,-500.0,0.00016944,2]
[422013910,1778467832000,-500.0,0.00016944,2]
[422013889,1778467832000,-500.0,0.00016844,2]
[422013907,1778467832000,-500.0,0.00016944,2]
[422013912,1778467832000,-500.0,0.00016944,2]
[422013914,1778467832000,-500.0,0.00016944,2]
[422013913,1778467832000,-500.0,0.00016944,2]
[422013916,1778467832000,-500.0,0.00016944,2]
[422013915,1778467832000,-500.0,0.00016944,2]
[422013902,1778467832000,-150.0,0.00016944,2]
[422013883,1778467832000,-150.0,0.00016844,2]
[422013885,1778467832000,-257.47855207,0.00016844,2]
[422013888,1778467832000,-500.0,0.00016844,2]
[422013861,1778467832000,-550.0,0.00016543,2]
[422013857,1778467832000,-177.35,0.00016406,2]
[422013859,1778467832000,-161.03,0.00016507,2]
[422013863,1778467832000,-163.71841409,0.00016543,2]
[422013864,1778467832000,-152.0,0.00016562,2]
[422013865,1778467832000,-152.0,0.00016562,2]
[422013876,1778467832000,-1622.44,0.00016631,2]
[422013866,1778467832000,-152.0,0.00016562,2]
[422013870,1778467832000,-152.0,0.00016562,2]
[422013868,1778467832000,-152.0,0.00016562,2]
[422013869,1778467832000,-152.0,0.00016562,2]
[422013867,1778467832000,-152.0,0.00016562,2]
[422013884,1778467832000,-165.34226256,0.00016844,2]
[422013875,1778467832000,-1833.06,0.00016572,2]
[422013873,1778467832000,-152.0,0.00016562,2]
[422013874,1778467832000,-152.0,0.00016562,2]
[422013871,1778467832000,-152.0,0.00016562,2]
[422013877,1778467832000,-500.0,0.00016844,2]
[422013878,1778467832000,-150.0,0.00016844,2]
[422013879,1778467832000,-500.0,0.00016844,2]
[422013880,1778467832000,-150.0,0.00016844,2]
[422013921,1778467832000,-151.0,0.0001698,2]
[422013886,1778467832000,-500.0,0.00016844,2]
[422013881,1778467832000,-150.0,0.00016844,2]
[422013887,1778467832000,-500.0,0.00016844,2]
[422013882,1778467832000,-500.0,0.00016844,2]
[422013872,1778467832000,-152.0,0.00016562,2]
[422013917,1778467832000,-500.0,0.00016944,2]
[422013899,1778467832000,-150.0,0.00016944,2]
[422013918,1778467832000,-537.28262258,0.00016944,2]
[422013951,1778467832000,-500.0,0.00017127,2]
[422013954,1778467832000,-500.0,0.00017127,2]
[422013955,1778467832000,-158.92076711,0.00017127,2]
[422013959,1778467832000,-500.0,0.00017127,2]
[422013956,1778467832000,-500.0,0.00017127,2]
[422013953,1778467832000,-500.0,0.00017127,2]
[422013952,1778467832000,-500.0,0.00017127,2]
[422013958,1778467832000,-500.0,0.00017127,2]
[422013961,1778467832000,-500.0,0.00017127,2]
[422013963,1778467832000,-500.0,0.00017127,2]
[422013970,1778467832000,-500.0,0.00017127,2]
[422013960,1778467832000,-500.0,0.00017127,2]
[422013972,1778467832000,-500.0,0.00017127,2]
[422013971,1778467832000,-500.0,0.00017127,2]
[422013965,1778467832000,-500.0,0.00017127,2]
[422013966,1778467832000,-500.0,0.00017127,2]
[422013967,1778467832000,-500.0,0.00017127,2]
[422013962,1778467832000,-500.0,0.00017127,2]
[422013964,1778467832000,-500.0,0.00017127,2]
[422013968,1778467832000,-500.0,0.00017127,2]
[422013969,1778467832000,-500.0,0.00017127,2]
[422013973,1778467832000,-500.0,0.00017127,2]
[422013974,1778467832000,-500.0,0.00017127,2]
[422013919,1778467832000,-150.57681341,0.00016944,2]
[422013977,1778467832000,-500.0,0.00017127,2]
[422013976,1778467832000,-166.69457076,0.00017127,2]
[422013978,1778467832000,-500.0,0.00017127,2]
[422013949,1778467832000,-1622.44,0.00017037,2]
[422013948,1778467832000,-788.28625127,0.00017028,2]
[422013975,1778467832000,-500.0,0.00017127,2]
[422013950,1778467832000,-5045.60318418,0.00017125,2]
[422013957,1778467832000,-500.0,0.00017127,2]
[422013922,1778467832000,-238.11815001,0.0001698,2]
[422013923,1778467832000,-151.0,0.0001698,2]
[422013924,1778467832000,-151.0,0.0001698,2]
[422013925,1778467832000,-151.0,0.0001698,2]
[422013929,1778467832000,-151.0,0.0001698,2]
[422013928,1778467832000,-151.0,0.0001698,2]
[422013926,1778467832000,-151.0,0.0001698,2]
[422013931,1778467832000,-151.0,0.0001698,2]
[422013932,1778467832000,-151.0,0.0001698,2]
[422013933,1778467832000,-151.0,0.0001698,2]
[422013934,1778467832000,-151.0,0.0001698,2]
[422013930,1778467832000,-151.0,0.0001698,2]
[422013927,1778467832000,-151.0,0.0001698,2]
[422013935,1778467832000,-151.0,0.0001698,2]
[422013947,1778467832000,-3031.01123812,0.00017028,2]
[422013946,1778467832000,-2500.0,0.00017028,2]
[422013945,1778467832000,-6736.39120948,0.0001699,2]
[422013936,1778467832000,-151.0,0.0001698,2]
[422013940,1778467832000,-2080.17592889,0.0001698,2]
[422013942,1778467832000,-2018.062,0.00016989,2]
[422013941,1778467832000,-151.75990406,0.0001698,2]
[422013944,1778467832000,-27369.22546372,0.0001699,2]
[422013943,1778467832000,-164.31,0.00016989,2]
[422013920,1778467832000,-500.0,0.00016944,2]
[422013938,1778467832000,-151.0,0.0001698,2]
[422013937,1778467832000,-151.0,0.0001698,2]
[422013939,1778467832000,-153.66441567,0.0001698,2]
[422013994,1778467833000,-500.0,0.00017127,2]
[422013982,1778467833000,-500.0,0.00017127,2]
[422013979,1778467833000,-500.0,0.00017127,2]
[422013980,1778467833000,-500.0,0.00017127,2]
[422013984,1778467833000,-500.0,0.00017127,2]
[422013983,1778467833000,-500.0,0.00017127,2]
[422013981,1778467833000,-500.0,0.00017127,2]
[422013985,1778467833000,-500.0,0.00017127,2]
[422013986,1778467833000,-500.0,0.00017127,2]
[422013995,1778467833000,-6792.22215343,0.00017128,2]
[422013988,1778467833000,-500.0,0.00017127,2]
[422013996,1778467833000,-9399.70284657,0.00017128,2]
[422013989,1778467833000,-500.0,0.00017127,2]
[422013993,1778467833000,-361.92037938,0.00017127,2]
[422013990,1778467833000,-500.0,0.00017127,2]
[422013991,1778467833000,-500.0,0.00017127,2]
[422013992,1778467833000,-500.0,0.00017127,2]
[422013997,1778467833000,-155143.90077256,0.00017128,2]
[422013987,1778467833000,-500.0,0.00017127,2]
[422013999,1778467837000,-545.85460464,0.00017128,2]
[422014000,1778467837000,-26236.90956473,0.00017128,2]
[422014001,1778467837000,-1466.25518156,0.00017128,2]
[422014003,1778467837000,-570.50010861,0.00017128,2]
[422014006,1778467837000,-4730.75089867,0.00017128,2]
[422014004,1778467837000,-1984.72644722,0.00017128,2]
[422014005,1778467837000,-1227.1143246,0.00017128,2]
[422014007,1778467837000,-338.46720141,0.00017128,2]
[422014002,1778467837000,-477.81953028,0.00017128,2]
[422014284,1778467840000,-2935.0,0.00017128,2]
[422014261,1778467840000,-20047.4899353,0.00017128,2]
[422014324,1778467840000,-8615.33658375,0.00017128,2]
[422014321,1778467840000,-1756.26465542,0.00017128,2]
[422014549,1778467842000,-569.74060338,0.00017273,2]
[422014545,1778467842000,-500.0,0.00017227,2]
[422014543,1778467842000,-500.0,0.00017227,2]
[422014541,1778467842000,-500.0,0.00017227,2]
[422014547,1778467842000,-500.0,0.00017227,2]
[422014552,1778467842000,-230.46,0.00017448,2]
[422014553,1778467842000,-2240.79452949,0.00017528,2]
[422014540,1778467842000,-503.5109924,0.00017218,2]
[422014542,1778467842000,-476.48036772,0.00017227,2]
[422014551,1778467842000,-1622.44,0.00017443,2]
[422014539,1778467842000,-12017.8255503,0.00017214,2]
[422014538,1778467842000,-5266.1510831,0.00017214,2]
[422014531,1778467842000,-681.76212011,0.00017128,2]
[422014529,1778467842000,-261.98000005,0.00017128,2]
[422014534,1778467842000,-769.89099571,0.00017128,2]
[422014536,1778467842000,-22987.66241616,0.00017128,2]
[422014527,1778467842000,-35409.74475922,0.00017128,2]
[422014528,1778467842000,-5315.1,0.00017128,2]
[422014546,1778467842000,-526.19319937,0.00017227,2]
[422014537,1778467842000,-276.72795222,0.00017128,2]
[422014544,1778467842000,-500.0,0.00017227,2]
[422014563,1778467842000,-416.0,0.00019,2]
[422014548,1778467842000,-552.54434627,0.00017227,2]
[422014572,1778467842000,-194.28,0.0002031,2]
[422014567,1778467842000,-3031.01123811,0.00019569,2]
[422014571,1778467842000,-416.0,0.0002,2]
[422014566,1778467842000,-978.61,0.00019525,2]
[422014570,1778467842000,-163.75109806,0.0002,2]
[422014569,1778467842000,-1366.0,0.0002,2]
[422014561,1778467842000,-214.17,0.00018565,2]
[422014562,1778467842000,-154.0,0.00019,2]
[422014557,1778467842000,-291.0,0.00017651,2]
[422014568,1778467842000,-780.0,0.0002,2]
[422014565,1778467842000,-230.46,0.00019386,2]
[422014560,1778467842000,-509.80665889,0.0001829,2]
[422014555,1778467842000,-978.61,0.00017572,2]
[422014554,1778467842000,-3718.28,0.00017572,2]
[422014564,1778467842000,-500.0,0.00019178,2]
[422014550,1778467842000,-214.82098671,0.00017348,2]
[422014556,1778467842000,-152.0,0.00017595,2]
[422014558,1778467842000,-1622.44,0.00017848,2]
[422014559,1778467842000,-165.71,0.00018019,2]
[422014573,1778467842000,-788.28625125,0.0002044,2]
[422014620,1778467843000,-589.9977497,0.00023764,2]
[422014614,1778467843000,-230.46,0.00023264,2]
[422014616,1778467843000,-978.61,0.0002343,2]
[422014615,1778467843000,-237.4,0.00023392,2]
[422014618,1778467843000,-665.78938152,0.00023744,2]
[422014608,1778467843000,-212.19,0.00022339,2]
[422014611,1778467843000,-155.12,0.00022738,2]
[422014610,1778467843000,-583.71,0.0002247,2]
[422014613,1778467843000,-416.0,0.00023,2]
[422014612,1778467843000,-166.2,0.00022955,2]
[422014606,1778467843000,-3031.01123811,0.00022111,2]
[422014627,1778467843000,-589.9977497,0.00023898,2]
[422014622,1778467843000,-589.9977497,0.0002381,2]
[422014623,1778467843000,-788.28625125,0.00023851,2]
[422014636,1778467843000,-589.9977497,0.00024014,2]
[422014629,1778467843000,-589.9977497,0.0002392,2]
[422014624,1778467843000,-589.9977497,0.00023861,2]
[422014633,1778467843000,-427.09652444,0.00024,2]
[422014631,1778467843000,-589.9977497,0.00023935,2]
[422014617,1778467843000,-589.9977497,0.00023683,2]
[422014650,1778467843000,-160.0,0.0002411,90]
[422014652,1778467843000,-160.0,0.0002411,60]
[422014621,1778467843000,-589.9977497,0.00023772,2]
[422014604,1778467843000,-416.0,0.00022,2]
[422014589,1778467843000,-151.0,0.00021532,2]
[422014595,1778467843000,-160.695447,0.00021532,2]
[422014576,1778467843000,-276.72795217,0.00021091,2]
[422014574,1778467843000,-592.66,0.00020548,2]
[422014575,1778467843000,-416.0,0.00021,2]
[422014578,1778467843000,-978.61,0.00021477,2]
[422014577,1778467843000,-230.46,0.00021325,2]
[422014580,1778467843000,-527.2056154,0.00021531,2]
[422014579,1778467843000,-500.0,0.00021531,2]
[422014582,1778467843000,-44154.51,0.00021531,2]
[422014584,1778467843000,-247.066966,0.00021532,2]
[422014583,1778467843000,-151.0,0.00021532,2]
[422014585,1778467843000,-151.0,0.00021532,2]
[422014598,1778467843000,-5000.0,0.00021918,2]
[422014581,1778467843000,-569.73623134,0.00021531,2]
[422014586,1778467843000,-151.0,0.00021532,2]
[422014600,1778467843000,-151.0,0.00021918,2]
[422014591,1778467843000,-151.46794,0.00021532,2]
[422014654,1778467843000,-160.0,0.0002411,30]
[422014590,1778467843000,-151.0,0.00021532,2]
[422014588,1778467843000,-151.0,0.00021532,2]
[422014602,1778467843000,-151.0,0.00021918,2]
[422014592,1778467843000,-151.46794,0.00021532,2]
[422014593,1778467843000,-151.46794,0.00021532,2]
[422014594,1778467843000,-151.46794,0.00021532,2]
[422014596,1778467843000,-151.0,0.00021532,2]
[422014587,1778467843000,-151.0,0.00021532,2]
[422014643,1778467843000,-589.9977497,0.00024042,2]
[422014619,1778467843000,-589.9977497,0.00023746,2]
[422014640,1778467843000,-163.4,0.00024032,2]
[422014696,1778467843000,-505.0,0.00024397,2]
[422014700,1778467843000,-397.0,0.00024658,2]
[422014701,1778467843000,-266.05478419,0.00024658,2]
[422014697,1778467843000,-578.0,0.00024421,10]
[422014707,1778467843000,-166.762,0.00024729,2]
[422014706,1778467843000,-168.45,0.00024658,2]
[422014705,1778467843000,-163.13,0.00024658,2]
[422014708,1778467843000,-150.0,0.00024729,2]
[422014710,1778467843000,-150.0,0.00024729,2]
[422014712,1778467843000,-731.60356716,0.0002486,2]
[422014709,1778467843000,-150.516,0.00024729,2]
[422014698,1778467843000,-3031.01123811,0.00024652,2]
[422014714,1778467843000,-1585.04196744,0.00025,2]
[422014711,1778467843000,-150.444,0.00024729,2]
[422014715,1778467843000,-731.60356716,0.00025051,2]
[422014717,1778467843000,-163.13,0.00025114,7]
[422014719,1778467843000,-731.60356716,0.00025133,2]
[422014716,1778467843000,-276.72795217,0.00025055,2]
[422014720,1778467843000,-926.0,0.00025213,2]
[422014718,1778467843000,-168.45,0.00025114,7]
[422014722,1778467843000,-1274.367,0.00025213,2]
[422014657,1778467843000,-160.0,0.0002411,90]
[422014723,1778467843000,-6049.0,0.00025213,2]
[422014724,1778467843000,-2943.519,0.00025213,2]
[422014713,1778467843000,-562.95218,0.00025,2]
[422014699,1778467843000,-427.0,0.00024658,2]
[422014721,1778467843000,-3540.0,0.00025213,2]
[422014694,1778467843000,-731.60356716,0.00024387,2]
[422014695,1778467843000,-250.42215881,0.00024392,2]
[422014638,1778467843000,-473.92341087,0.00024014,2]
[422014659,1778467843000,-160.0,0.0002411,60]
[422014645,1778467843000,-589.9977497,0.00024076,2]
[422014662,1778467843000,-160.0,0.0002411,30]
[422014664,1778467843000,-160.0,0.0002411,90]
[422014669,1778467843000,-160.0,0.0002411,90]
[422014671,1778467843000,-160.0,0.0002411,60]
[422014668,1778467843000,-160.0,0.0002411,30]
[422014673,1778467843000,-160.0,0.0002411,30]
[422014676,1778467843000,-160.0,0.0002411,90]
[422014678,1778467843000,-160.0,0.0002411,60]
[422014648,1778467843000,-589.9977497,0.00024099,2]
[422014680,1778467843000,-160.0,0.0002411,30]
[422014667,1778467843000,-160.0,0.0002411,60]
[422014704,1778467843000,-151.0,0.00024658,2]
[422014692,1778467843000,-731.60356716,0.00024221,2]
[422014702,1778467843000,-153.63295276,0.00024658,2]
[422014703,1778467843000,-1000.0,0.00024658,2]
[422014682,1778467843000,-160.0,0.0002411,90]
[422014684,1778467843000,-279.919999,0.0002411,60]
[422014686,1778467843000,-731.60356716,0.00024184,2]
[422014688,1778467843000,-537.0,0.00024217,5]
[422014690,1778467843000,-166.2,0.00024218,2]
[422014693,1778467843000,-151.0,0.00024324,2]
[422014752,1778467844000,-541.43,0.00026576,7]
[422014757,1778467844000,-557.28750719,0.00026718,2]
[422014748,1778467844000,-157.22,0.00026438,2]
[422014749,1778467844000,-541.43,0.00026441,7]
[422014750,1778467844000,-152.27,0.00026575,7]
[422014754,1778467844000,-557.28750719,0.000267,2]
[422014756,1778467844000,-541.43,0.00026711,7]
[422014755,1778467844000,-151.0,0.00026704,7]
[422014758,1778467844000,-557.28750719,0.00026725,2]
[422014763,1778467844000,-200.0,0.0002679,20]
[422014761,1778467844000,-580.1,0.00026765,7]
[422014764,1778467844000,-557.28750719,0.00026801,2]
[422014762,1778467844000,-175.56422625,0.00026779,12]
[422014760,1778467844000,-557.28750719,0.00026751,2]
[422014766,1778467844000,-541.43,0.00026845,7]
[422014767,1778467844000,-580.1,0.00026845,7]
[422014765,1778467844000,-557.28750719,0.00026841,2]
[422014769,1778467844000,-557.28750719,0.00026851,2]
[422014770,1778467844000,-557.28750719,0.00026872,2]
[422014751,1778467844000,-157.22,0.00026575,7]
[422014759,1778467844000,-166.2,0.00026743,2]
[422014747,1778467844000,-152.25,0.00026438,2]
[422014735,1778467844000,-157.22,0.00026027,2]
[422014745,1778467844000,-200.0,0.00026397,7]
[422014726,1778467844000,-372.0,0.00025411,10]
[422014727,1778467844000,-250.42215881,0.00025419,14]
[422014725,1778467844000,-237.75,0.00025397,2]
[422014729,1778467844000,-163.13,0.00025571,30]
[422014730,1778467844000,-168.45,0.00025571,30]
[422014728,1778467844000,-166.2,0.0002548,2]
[422014733,1778467844000,-152.25,0.00026027,2]
[422014734,1778467844000,-163.13,0.00026027,2]
[422014731,1778467844000,-222.0,0.00025741,10]
[422014732,1778467844000,-505.0,0.00025787,3]
[422014736,1778467844000,-168.45,0.00026027,2]
[422014738,1778467844000,-157.22,0.00026164,7]
[422014743,1778467844000,-200.0,0.0002639,7]
[422014772,1778467844000,-557.28750719,0.00026899,2]
[422014737,1778467844000,-152.25,0.00026164,7]
[422014742,1778467844000,-683.0,0.0002639,5]
[422014739,1778467844000,-151.0,0.00026296,2]
[422014744,1778467844000,-200.0,0.0002639,7]
[422014740,1778467844000,-152.25,0.00026301,30]
[422014741,1778467844000,-157.22,0.00026301,30]
[422014746,1778467844000,-202.14563791,0.00026397,7]
[422014753,1778467844000,-200.0,0.0002659,20]
[422014768,1778467844000,-150.0,0.00026849,2]
[422014804,1778467844000,-505.0,0.00027177,4]
[422014773,1778467844000,-557.28750719,0.00026903,2]
[422014797,1778467844000,-151.0,0.00027172,2]
[422014799,1778467844000,-151.46794,0.00027172,2]
[422014803,1778467844000,-1000.0,0.00027174,2]
[422014794,1778467844000,-151.0,0.00027172,2]
[422014801,1778467844000,-151.46794,0.00027172,2]
[422014805,1778467844000,-1000.0,0.0002718,2]
[422014807,1778467844000,-151.0,0.00027193,2]
[422014806,1778467844000,-1000.0,0.00027186,2]
[422014808,1778467844000,-151.0,0.00027193,2]
[422014800,1778467844000,-151.46794,0.00027172,2]
[422014809,1778467844000,-3031.01123811,0.00027193,2]
[422014813,1778467844000,-1000.0,0.00027277,2]
[422014811,1778467844000,-1000.0,0.00027255,2]
[422014812,1778467844000,-788.28625125,0.00027263,2]
[422014814,1778467844000,-1000.0,0.00027289,2]
[422014815,1778467844000,-1000.0,0.00027297,2]
[422014816,1778467844000,-1000.0,0.00027301,2]
[422014817,1778467844000,-1000.0,0.00027324,2]
[422014818,1778467844000,-1000.0,0.00027342,2]
[422014819,1778467844000,-1000.0,0.00027357,2]
[422014810,1778467844000,-1000.0,0.00027235,2]
[422014795,1778467844000,-151.0,0.00027172,2]
[422014771,1778467844000,-557.28750719,0.00026894,2]
[422014793,1778467844000,-151.0,0.00027172,2]
[422014802,1778467844000,-151.46794,0.00027172,2]
[422014775,1778467844000,-557.28750719,0.00026917,2]
[422014776,1778467844000,-557.28750719,0.0002692,2]
[422014777,1778467844000,-541.43,0.0002698,7]
[422014778,1778467844000,-557.28750719,0.00027013,2]
[422014782,1778467844000,-557.28750719,0.00027083,2]
[422014779,1778467844000,-165.71,0.00027029,2]
[422014781,1778467844000,-275.55,0.00027076,2]
[422014780,1778467844000,-557.28750719,0.00027068,2]
[422014784,1778467844000,-1000.0,0.00027103,2]
[422014774,1778467844000,-557.28750719,0.00026905,2]
[422014792,1778467844000,-151.0,0.00027172,2]
[422014785,1778467844000,-557.28750719,0.0002711,2]
[422014786,1778467844000,-557.28750719,0.00027123,2]
[422014789,1778467844000,-1000.0,0.00027137,2]
[422014787,1778467844000,-203.74133063,0.00027127,2]
[422014791,1778467844000,-1000.0,0.00027172,2]
[422014788,1778467844000,-1000.0,0.00027137,2]
[422014790,1778467844000,-1000.0,0.00027143,2]
[422014798,1778467844000,-151.0,0.00027172,2]
[422014783,1778467844000,-1000.0,0.000271,2]
[422014796,1778467844000,-151.0,0.00027172,2]
[422014846,1778467845000,-296.732299,0.00027397,2]
[422014847,1778467845000,-296.732299,0.00027397,2]
[422014848,1778467845000,-296.732299,0.00027397,2]
[422014849,1778467845000,-296.732299,0.00027397,2]
[422014843,1778467845000,-151.0,0.00027397,2]
[422014844,1778467845000,-1000.0,0.00027397,20]
[422014851,1778467845000,-296.732299,0.00027397,2]
[422014839,1778467845000,-500.0,0.00027397,2]
[422014850,1778467845000,-296.732299,0.00027397,2]
[422014857,1778467845000,-309.816261,0.00027397,2]
[422014854,1778467845000,-309.816261,0.00027397,2]
[422014852,1778467845000,-296.732299,0.00027397,2]
[422014856,1778467845000,-309.816261,0.00027397,2]
[422014858,1778467845000,-50.48172509,0.00027397,2]
[422014855,1778467845000,-309.816261,0.00027397,2]
[422014859,1778467845000,-259.33453591,0.00027397,2]
[422014861,1778467845000,-309.816261,0.00027397,2]
[422014842,1778467845000,-396.76757612,0.00027397,2]
[422014853,1778467845000,-296.732299,0.00027397,2]
[422014841,1778467845000,-500.0,0.00027397,2]
[422014831,1778467845000,-500.0,0.00027397,2]
[422014840,1778467845000,-500.0,0.00027397,2]
[422014824,1778467845000,-500.0,0.00027397,2]
[422014823,1778467845000,-187.70780286,0.00027397,2]
[422014821,1778467845000,-151.0,0.00027397,2]
[422014820,1778467845000,-802.44990105,0.0002737,2]
[422014825,1778467845000,-500.0,0.00027397,2]
[422014822,1778467845000,-151.0,0.00027397,2]
[422014826,1778467845000,-500.0,0.00027397,2]
[422014830,1778467845000,-500.0,0.00027397,2]
[422014828,1778467845000,-500.0,0.00027397,2]
[422014829,1778467845000,-500.0,0.00027397,2]
[422014871,1778467845000,-241.949136,0.00027397,2]
[422014835,1778467845000,-500.0,0.00027397,2]
[422014834,1778467845000,-500.0,0.00027397,2]
[422014827,1778467845000,-500.0,0.00027397,2]
[422014832,1778467845000,-500.0,0.00027397,2]
[422014836,1778467845000,-500.0,0.00027397,2]
[422014833,1778467845000,-500.0,0.00027397,2]
[422014837,1778467845000,-500.0,0.00027397,2]
[422014838,1778467845000,-500.0,0.00027397,2]
[422014845,1778467845000,-175.725891,0.00027397,2]
[422014865,1778467845000,-201.21582973,0.00027397,2]
[422014863,1778467845000,-241.949136,0.00027397,2]
[422014862,1778467845000,-309.816261,0.00027397,2]
[422014888,1778467845000,-4213.86,0.00027397,10]
[422014890,1778467845000,-156.38,0.00026027,2]
[422014892,1778467845000,-156.38,0.00026164,7]
[422014891,1778467845000,-742.0,0.00026164,10]
[422014860,1778467845000,-309.816261,0.00027397,2]
[422014895,1778467845000,-203.87371813,0.000275,2]
[422014893,1778467845000,-481.0,0.00027397,10]
[422014896,1778467845000,-557.28750719,0.00027502,2]
[422014889,1778467845000,-28.56421341,0.00027444,2]
[422014897,1778467845000,-557.28750719,0.00027516,2]
[422014901,1778467845000,-557.28750719,0.00027581,2]
[422014898,1778467845000,-557.28750719,0.00027559,2]
[422014899,1778467845000,-557.28750719,0.00027575,2]
[422014900,1778467845000,-557.28750719,0.0002758,2]
[422014903,1778467845000,-557.28750719,0.00027585,2]